{"text_format":"3","workbook":"xlsx","n_sheets":6,"sheets":["New Rules","Highlight Cell Rules","New Rule","Filter Tool","VBA Editor","Office Script"],"not_rendered":{"defined_names":1},"read":"whole","date_system":"1900"}

{"sheet":"New Rules","index":0,"n_rows":13,"n_cols":4,"rows_kept":13}
["Student","Subject","Score","Passed?"]
["Charlotte White","History",84,{"$f":"IF(C2>40, \"Yes\", \"No\")","v":"Yes"}]
["Chloe Allen","Math",76,{"$f":"IF(C3>40, \"Yes\", \"No\")","v":"Yes"}]
["Oliver Wilson","History",32,"No"]
["Ruby Scott","English",51,"Yes"]
["Amelia Taylor","Science",39,"No"]
["Emily Johnson","Science",79,"Yes"]
["Jack Anderson","English",62,"Yes"]
["Liam Thompson","Math",90,"Yes"]
["Amelia Taylor","History",37,"No"]
["Liam Thompson","Math",95,"Yes"]
["Michael Brown","History",88,"Yes"]
["Amelia Taylor","History",22,"No"]

{"sheet":"Highlight Cell Rules","index":1,"n_rows":13,"n_cols":4,"rows_kept":13}
["Student","Subject","Score","Passed?"]
["Charlotte White","History",84,{"$f":"IF(C2>40, \"Yes\", \"No\")","v":"Yes"}]
["Chloe Allen","Math",76,{"$f":"IF(C3>40, \"Yes\", \"No\")","v":"Yes"}]
["Oliver Wilson","History",32,"No"]
["Ruby Scott","English",51,"Yes"]
["Amelia Taylor","Science",39,"No"]
["Emily Johnson","Science",79,"Yes"]
["Jack Anderson","English",62,"Yes"]
["Liam Thompson","Math",90,"Yes"]
["Amelia Taylor","History",37,"No"]
["Liam Thompson","Math",95,"Yes"]
["Michael Brown","History",88,"Yes"]
["Amelia Taylor","History",22,"No"]

{"sheet":"New Rule","index":2,"n_rows":13,"n_cols":4,"rows_kept":13}
["Student","Subject","Score","Passed?"]
["Charlotte White","History",84,{"$f":"IF(C2>40, \"Yes\", \"No\")","v":"Yes"}]
["Chloe Allen","Math",76,{"$f":"IF(C3>40, \"Yes\", \"No\")","v":"Yes"}]
["Oliver Wilson","History",32,"No"]
["Ruby Scott","English",51,"Yes"]
["Amelia Taylor","Science",39,"No"]
["Emily Johnson","Science",79,"Yes"]
["Jack Anderson","English",62,"Yes"]
["Liam Thompson","Math",90,"Yes"]
["Amelia Taylor","History",37,"No"]
["Liam Thompson","Math",95,"Yes"]
["Michael Brown","History",88,"Yes"]
["Amelia Taylor","History",22,"No"]

{"sheet":"Filter Tool","index":3,"n_rows":13,"n_cols":4,"rows_kept":13}
["Student","Subject","Score","Passed?"]
["Charlotte White","History",84,{"$f":"IF(C2>40, \"Yes\", \"No\")","v":"Yes"}]
["Chloe Allen","Math",76,{"$f":"IF(C3>40, \"Yes\", \"No\")","v":"Yes"}]
["Oliver Wilson","History",32,"No"]
["Ruby Scott","English",51,"Yes"]
["Amelia Taylor","Science",39,"No"]
["Emily Johnson","Science",79,"Yes"]
["Jack Anderson","English",62,"Yes"]
["Liam Thompson","Math",90,"Yes"]
["Amelia Taylor","History",37,"No"]
["Liam Thompson","Math",95,"Yes"]
["Michael Brown","History",88,"Yes"]
["Amelia Taylor","History",22,"No"]

{"sheet":"VBA Editor","index":4,"n_rows":13,"n_cols":4,"rows_kept":13}
["Student","Subject","Score","Passed?"]
["Charlotte White","History",84,{"$f":"IF(C2>40, \"Yes\", \"No\")","v":"Yes"}]
["Chloe Allen","Math",76,{"$f":"IF(C3>40, \"Yes\", \"No\")","v":"Yes"}]
["Oliver Wilson","History",32,"No"]
["Ruby Scott","English",51,"Yes"]
["Amelia Taylor","Science",39,"No"]
["Emily Johnson","Science",79,"Yes"]
["Jack Anderson","English",62,"Yes"]
["Liam Thompson","Math",90,"Yes"]
["Amelia Taylor","History",37,"No"]
["Liam Thompson","Math",95,"Yes"]
["Michael Brown","History",88,"Yes"]
["Amelia Taylor","History",22,"No"]

{"sheet":"Office Script","index":5,"n_rows":13,"n_cols":4,"rows_kept":13}
["Student","Subject","Score","Passed?"]
["Charlotte White","History",84,{"$f":"IF(C2>40, \"Yes\", \"No\")","v":"Yes"}]
["Chloe Allen","Math",76,{"$f":"IF(C3>40, \"Yes\", \"No\")","v":"Yes"}]
["Oliver Wilson","History",32,"No"]
["Ruby Scott","English",51,"Yes"]
["Amelia Taylor","Science",39,"No"]
["Emily Johnson","Science",79,"Yes"]
["Jack Anderson","English",62,"Yes"]
["Liam Thompson","Math",90,"Yes"]
["Amelia Taylor","History",37,"No"]
["Liam Thompson","Math",95,"Yes"]
["Michael Brown","History",88,"Yes"]
["Amelia Taylor","History",22,"No"]